{"text_format":"3","workbook":"xlsx","n_sheets":4,"sheets":["Supply of Biometric","Removal and Installation","Software and Licencing","Maintance and Support "],"not_rendered":{"images":1,"defined_names":16},"read":"whole","date_system":"1900"}

{"sheet":"Supply of Biometric","index":0,"n_rows":16,"n_cols":6,"rows_kept":16,"merged":[[0,0,0,5],[1,2,1,5],[2,0,2,1],[2,2,2,5],[3,0,3,1],[3,2,3,5]]}
["ANNEXURE B: PRICING SCHEDULE"]
[null,null,"APPOINTMENT OF A SERVICE PROVIDER TO SUPPLY AND INSTALL BIOMETRICS ACCESS CONTROL SYSTEMS AT PSiRA HEAD OFFICE AND ITS REGIONAL OFFICES."]
["BID NO:",null,"PSiRA/2023/RFB/01"]
["BIDDER NAME "]
["No","SUPPLY OF BIOMETRIC ACCESS ","Unit","Qty","Unit Price","Total Price"]
[1,"ZK-SPEEDFACE-V 5L-P-ZKT eco-SpeedFace V5 Facial, Fingerprint, Palm & RFID Indoor Stand Alone Access Control Terminal 24 Months Warranty"]
[2,"AA-EXIT-NOTOUC H-Access Control Exit Button No"]
[3,"AA-RESET-CALLP OINT-Manual Call Point-Green Resettable"]
[4,"ZK-BRACKET-280 ZL-ZKTeco-Bracket for 280 kg Maglock"]
[5,"ZK-MAGLOCK-280-ZKTeco-Maglock 280 kg With LED"]
[6,"ZK-BS-AC-P10-ZKTeco-ZKBiosecurity software for Access control for 10 doors"]
[7,"AA-POWER-3.2A MP-Access control-Power Supply, 12VDC, 3.2A"]
[8,"FB-12-7-12V 7.2AH Sealed Lead Acid Battery"]
[9,"M&Support-Maintenance and Support for 12 Months and all hardware and workmanship"]
[10,"ZKTeco-ZKBiosecurity time and attendance software for 10"]
[null,"Total Inclusive of VAT ",{"$nulls":3},{"$f":"SUM(F6:F15)","v":0}]

{"sheet":"Removal and Installation","index":1,"n_rows":17,"n_cols":8,"rows_kept":17,"merged":[[0,2,0,7],[1,0,1,1],[1,2,1,7],[2,0,2,1],[2,2,2,7]]}
[null,null,"APPOINTMENT OF A SERVICE PROVIDER TO SUPPLY AND INSTALL BIOMETRICS ACCESS CONTROL SYSTEMS AT PSiRA HEAD OFFICE AND ITS REGIONAL OFFICES."]
["BID NO:",null,"PSiRA/2023/RFB/01"]
["BIDDER NAME "]
["No","Removal of Old Biometric Equipment and Installation of New Biometric Infrastructure","NO OF UNITS TO BE REMOVED ","COST OF REMOVAL OF BIOMETRIC EQUIPMENTS ","TOTAL PRICE","INSTALLATION OF NEW BIOMETRIC EQUIPMENTS","UNIT PRICE ","TOTAL FOR  INSTALLATION OF BIOMETRIC EQUIPMENTS PER OFFICE "]
[1,"PSiRA Head Office",2,{"v":0,"d":"R0.00"},{"$f":"C5*D5","v":{"v":0,"d":"R0.00"}},3,{"v":0,"d":"R0.00"},{"$f":"F5*G5","v":{"v":0,"d":"R0.00"}}]
[2,"Pretoria CBD Office",0,{"$f":"SUM(C6)","v":{"v":0,"d":"R0.00"}},{"$f":"C6*D6","v":{"v":0,"d":"R0.00"}},1,{"v":0,"d":"R0.00"},{"$f":"F6*G6","v":{"v":0,"d":"R0.00"}}]
[3,"Arcadia Office",0,{"v":0,"d":"R0.00"},{"v":0,"d":"R0.00"},1,{"v":0,"d":"R0.00"},{"v":0,"d":"R0.00"}]
[4,"Johannesburg Office",0,{"v":0,"d":"R0.00"},{"v":0,"d":"R0.00"},2,{"v":0,"d":"R0.00"},{"v":0,"d":"R0.00"}]
[5,"Nelspruit Office",0,{"v":0,"d":"R0.00"},{"v":0,"d":"R0.00"},1,{"v":0,"d":"R0.00"},{"v":0,"d":"R0.00"}]
[6,"Polokwane Office",0,{"v":0,"d":"R0.00"},{"v":0,"d":"R0.00"},1,{"v":0,"d":"R0.00"},{"v":0,"d":"R0.00"}]
[7,"Bloemfontein Office",0,{"v":0,"d":"R0.00"},{"v":0,"d":"R0.00"},1,{"v":0,"d":"R0.00"},{"v":0,"d":"R0.00"}]
[8,"Durban Office",0,{"v":0,"d":"R0.00"},{"v":0,"d":"R0.00"},1,{"v":0,"d":"R0.00"},{"v":0,"d":"R0.00"}]
[9,"Port Elizabeth Office",0,{"v":0,"d":"R0.00"},{"v":0,"d":"R0.00"},1,{"v":0,"d":"R0.00"},{"v":0,"d":"R0.00"}]
[10,"Mthata Office",0,{"v":0,"d":"R0.00"},{"v":0,"d":"R0.00"},1,{"v":0,"d":"R0.00"},{"v":0,"d":"R0.00"}]
[11,"Cape Town Office",0,{"v":0,"d":"R0.00"},{"v":0,"d":"R0.00"},1,{"v":0,"d":"R0.00"},{"v":0,"d":"R0.00"}]
[null,"Total Exc. VAT ",null,null,{"$f":"SUM(E5:E15)","v":{"v":0,"d":"R0.00"}},{"$f":"SUM(F5:F15)","v":14},null,{"$f":"SUM(H5:H15)","v":{"v":0,"d":"R0.00"}}]
[null,"Total Incl VAT",{"$nulls":5},{"$f":"A1:H17","v":{"v":0,"d":"R0.00"}}]

{"sheet":"Software and Licencing","index":2,"n_rows":7,"n_cols":5,"rows_kept":7,"merged":[[0,2,0,4],[1,0,1,1],[1,2,1,4],[2,0,2,1],[2,2,2,4]]}
[null,null,"APPOINTMENT OF A SERVICE PROVIDER TO SUPPLY AND INSTALL BIOMETRICS ACCESS CONTROL SYSTEMS AT PSiRA HEAD OFFICE AND ITS REGIONAL OFFICES."]
["BID NO:",null,"PSiRA/2023/RFB/01"]
["BIDDER NAME "]
["No","Software and Licensing","Unit","unit price ","Total Price"]
[1,"Software procurement and installation-once off",1]
[2,"Software annual license (recurring)",3]
[null,"Total Inclusive of VAT ",null,null,{"$f":"SUM(E5:E6)","v":0}]

{"sheet":"Maintance and Support ","index":3,"n_rows":8,"n_cols":4,"rows_kept":8,"merged":[[0,1,0,3],[1,1,1,3],[2,1,2,3],[4,0,6,0]]}
[null,"APPOINTMENT OF A SERVICE PROVIDER TO SUPPLY AND INSTALL BIOMETRICS ACCESS CONTROL SYSTEMS AT PSiRA HEAD OFFICE AND ITS REGIONAL OFFICES."]
[null,"PSiRA/2023/RFB/01"]
[]
["Maintenance and support of all PSiRA offices","Unit","Monthly Fee ","Total Price"]
["Maintenance and support","Year           1"]
[null,"Year           2"]
[null,"Year           3"]
["Total Inclusive of VAT ",null,null,{"$f":"SUM(D5:D7)","v":0}]